[Event "57th Biel Festival MTO 2024"]
[White "Aryan Chopra"]
[Black "Kolbus,Dietmar"]
[Site "Biel"]
[Round "1.1"]
[Annotator "TA"]
[Result "1-0"]
[Date "2024.07.15"]
[WhiteElo "2631"]
[BlackElo "2234"]
[PlyCount "71"]
[TimeControl "60"]

{[%evp 12,71,28,17,82,30,43,36,50,15,40,41,60,49,87,92,76,81,95,99,100,110,111,93,105,91,126,102,134,152,152,157,153,162,293,280,310,310,291,304,235,274,266,254,185,110,363,363,817,835,1692,1654,29986,1218,1619,1282,1160,0,1126,1062,987,949]} 1. e4 {[%emt 0:0:4]} c6 {[%emt 0:0:8]} 2. d4 {[%emt 0:0:18]} d5 {[%emt 0:0:3]} 3. e5 {[%emt 0:0:18]} Bf5 {[%emt 0:0:10]} 4. Nf3 {[%emt 0:0:20]} e6 {[%emt 0:0:21]} 5. Be2 {[%emt 0:0:4]} c5 {[%emt 0:0:50]} 6. Be3 {[%emt 0:1:32]} Nd7 {[%emt 0:8:10]} 7. O-O {[%emt 0:5:10]} c4 {[%emt 0:9:50]} (7... Ne7 $11 )8. a4 {[%emt 0:3:46]} ({Besser ist} 8. b3 $16 )a6 {[%emt 0:9:14]} 9. Nbd2 {[%emt 0:3:13]} h6 {[%emt 0:6:19] Weiß steht etwas besser.} 10. Ne1 {[%emt 0:0:28]} Ne7 {[%emt 0:0:56]} 11. f4 {[%emt 0:0:58]} Qc7 {[%emt 0:4:4]} 12. c3 {[%emt 0:0:54]} Rc8 {[%emt 0:4:28]} 13. g4 {[%emt 0:5:25][%cal Bg2g4,Bg4g5][%mdl 32]} Bh7 {[%emt 0:0:10]} 14. Ng2 {[%emt 0:0:6]} f5 {[%emt 0:11:12]} 15. g5 {[%emt 0:0:53]} b5 {[%emt 0:14:53]} 16. axb5 {[%emt 0:3:14]} axb5 {[%emt 0:0:2]} 17. h4 {[%emt 0:0:20][%cal Bh2h4,Bh4h5][%mdl 32]} g6 {[%emt 0:1:46]} 18. h5 {[%emt 0:3:57]} Qb7 {[%emt 0:9:16] Lässt Ra6 nicht zu} 19. Kf2 {[%emt 0:2:22]} Bg7 {[%emt 0:13:41]} 20. Rh1 {[%emt 0:4:6]} Nf8 {[%emt 0:0:47]} 21. Nf1 {[%emt 0:3:28]} gxh5 {[%emt 0:1:53] [#]} 22. Ng3 $1 {[%emt 0:4:16] Weiß steht aktiver.} hxg5 {[%emt 0:3:47]} (22... Bg6 {ist eine bessere Verteidigung.} 23. Nxh5 (23. Bxh5 hxg5 24. fxg5 Ra8 $16 )Bxh5 )23. Nxh5 $18 {[%emt 0:0:58]} (23. Rxh5 g4 $11 )Kf7 {[%emt 0:0:13]} 24. fxg5 {[%emt 0:0:26]} Bg6 {[%emt 0:1:26] Schwarz hat schwache schwarze Felder} 25. Nxg7 {[%emt 0:10:19]} Kxg7 {[%emt 0:0:56]} 26. Rxh8 {[%emt 0:0:21]} Kxh8 {[%emt 0:0:2]} 27. Qh1+ {[%emt 0:0:6]} Kg8 {[%emt 0:0:14]} 28. Qh6 {[%emt 0:1:20]} (28. Nf4 $18 Ra8 29. Rg1 )Ra8 $2 {[%emt 0:1:27][%mdl 8192] [#]} (28... f4 $16 29. Nxf4 Nf5 )29. Rh1 {[%emt 0:0:22]} Kf7 $2 {[%emt 0:3:51]} (29... Bh7 30. Bh5 f4 )30. Nf4 {[%emt 0:0:6]} Qc6 {[%emt 0:3:6]} 31. Bh5 {[%emt 0:1:5]} Qe8 {[%emt 0:1:21]} 32. Nxg6 {[%emt 0:0:31]} (32. Qh8 $142 Bxh5 33. Nxh5 Qd7 34. Qg7+ Ke8 35. Nf6+ Kd8 36. Qxf8+ Kc7 37. Qxa8 (37. Nxd7 Rxf8 38. Nxf8 f4 $18 ))Nexg6 {[%emt 0:0:10]} 33. Bxg6+ {[%emt 0:0:17]} Nxg6 {[%emt 0:0:5]} 34. Qh7+ {[%emt 0:0:3]} Kf8 {[%emt 0:0:17]} 35. Rh6 {[%emt 0:0:5]} Qf7 {[%emt 0:0:43]} 36. Qxg6 {[%emt 0:0:6] Gewichteter Fehlerwert: Weiß=0.11 (sehr präzise) /Schwarz=0.62.  Verlustzug:     	---       	Schwarz=1     Fehler:       	Weiß=2     	Schwarz=2     Ungenau:       	Weiß=1     	Schwarz=4     OK:         	Weiß=13    	Schwarz=8     Bester:       	Weiß=1     	---        Stark:        	Weiß=1     	---} 1-0

[Event "57th Biel Festival MTO 2024"]
[White "Papaux,Steve"]
[Black "Mendonca,Leon Luke"]
[Site "Biel"]
[Round "1.2"]
[Annotator "TA"]
[Result "0-1"]
[Date "2024.07.15"]
[WhiteElo "2188"]
[BlackElo "2634"]
[PlyCount "58"]
[TimeControl "60"]

{[%evp 11,58,24,31,1,15,-9,-10,-22,-13,-22,-22,-16,-34,-9,-36,-22,-31,-68,-16,-187,-188,-218,-216,-294,-295,-275,-276,-464,-430,-460,-462,-459,-456,-461,-462,-458,-452,-495,-383,-931,-917,-960,-946,-1114,-1087,-29988,-29989,-29990,-29990]} 1. Nf3 {[%emt 0:0:4]} Nf6 {[%emt 0:1:8]} 2. g3 {[%emt 0:0:19]} b5 {[%emt 0:2:39]} 3. Bg2 {[%emt 0:2:58]} Bb7 {[%emt 0:0:14]} 4. d4 {[%emt 0:2:28]} e6 {[%emt 0:0:52]} 5. O-O {[%emt 0:1:12]} c5 {[%emt 0:8:3]} 6. c3 {[%emt 0:6:6]} Nc6 {[%emt 0:3:38]} 7. Nbd2 {[%emt 0:5:54]} d5 {[%emt 0:1:41]} 8. Qc2 {[%emt 0:8:11]} Rc8 {[%emt 0:4:25] Weiss sollte ...cxd4 verhindern.} 9. dxc5 {[%emt 0:1:55] Die Stellung ist ausgeglichen.} Bxc5 {[%emt 0:0:27]} 10. e4 {[%emt 0:0:10]} O-O {[%emt 0:3:41]} 11. exd5 {[%emt 0:1:59] [#]} Nb4 {[%emt 0:3:25]} 12. Qd1 {[%emt 0:1:21]} Nbxd5 {[%emt 0:1:55]} (12... Nd3 {wäre vielleicht verwirrender.} 13. Qe2 Qxd5 14. Ne1 Nxc1 15. Rxc1 Qd7 )13. Nb3 {[%emt 0:1:21]} Be7 {[%emt 0:10:34]} 14. Qe2 {[%emt 0:3:45]} Qb6 {[%emt 0:1:12]} ({Besser ist} 14... b4 $1 $15 15. cxb4 Nxb4 )15. Nbd4 $2 {[%emt 0:4:56] [#] Ein Fehler, der zur Niederlage führt.} (15. Rd1 $11 )Ba6 $1 $19 {[%emt 0:1:40]} 16. Rd1 {[%emt 0:5:54]} b4 {[%emt 0:1:25]} 17. c4 {[%emt 0:0:9]} Rxc4 {[%emt 0:3:59]} (17... Bxc4 18. Qe1 $19 )18. Qe1 {[%emt 0:0:56]} Bc5 {[%emt 0:4:0]} 19. Be3 {[%emt 0:4:12]} (19. Bf1 {einziger Zug.} Rxd4 20. Rxd4 Bxd4 21. Bxa6 Bxf2+ 22. Qxf2 Qxa6 23. b3 )Nxe3 {[%emt 0:1:57]} ({Schwächer ist} 19... Ng4 20. Bf1 $19 )20. fxe3 {[%emt 0:1:1] [#]} e5 $1 {[%emt 0:1:53][%mdl 512]} 21. Nxe5 {[%emt 0:0:58]} Rxd4 {[%emt 0:0:16]} 22. exd4 {[%emt 0:1:1]} Bxd4+ {[%emt 0:0:8] Das Läuferpaar ist gut.} 23. Kh1 {[%emt 0:0:15]} Re8 {[%emt 0:1:36]} (23... Bxb2 24. Rab1 Bc3 25. Qxc3 bxc3 26. Rxb6 axb6 27. Bc6 $19 )24. a3 {[%emt 0:0:57]} b3 {[%emt 0:2:57][%cal Od4b2] Zielt auf ...Bxb2! ab.} (24... Rxe5 $2 25. Qxb4 Bc5 (25... Bxb2 $2 26. Qxb6 axb6 27. Rab1 $19 )26. Qxb6 Bxb6 27. Rd6 $19 )25. Rxd4 $2 {[%emt 0:1:52]} (25. Qb4 Bxe5 26. Qxb6 axb6 27. a4 )Qxd4 {[%emt 0:0:11]} 26. Qa5 {[%emt 0:0:5]} Qxb2 {[%emt 0:3:32]} 27. Re1 {[%emt 0:1:11]} Qf2 {[%emt 0:1:16] ...b2 wäre nun fies.} 28. Bc6 {[%emt 0:1:16] [#]} Ng4 $1 {[%emt 0:2:35][%csl Gg4][%cal Rf2h2][%mdl 512]} 29. Bg2 {[%emt 0:2:42] [#]} (29. Nf3 Be2 )Bb7 $1 {[%emt 0:0:45][%mdl 512] Gewichteter Fehlerwert: Weiß=1.03/Schwarz=0.11 (sehr präzise) .  Verlustzug:     	Weiß=1     	---        Fehler:       	Weiß=2     	Schwarz=1     Ungenau:       	Weiß=2     	---        OK:         	Weiß=6     	Schwarz=9     Bester:       	---       	Schwarz=3     Stark:        	---       	Schwarz=1} 0-1

[Event "57th Biel Festival MTO 2024"]
[White "Nesterov,Arseniy"]
[Black "Gueci,Tea"]
[Site "Biel"]
[Round "1.3"]
[Annotator "TA"]
[Result "1-0"]
[Date "2024.07.15"]
[WhiteElo "2609"]
[BlackElo "2228"]
[PlyCount "81"]
[TimeControl "60"]

{[%evp 18,81,24,13,22,18,27,20,16,18,17,20,35,23,25,19,12,15,37,12,16,9,13,0,0,2,42,12,15,0,0,0,0,0,0,-26,-14,-29,-16,-25,-20,-37,-8,-107,-76,-121,-49,-96,-27,-25,-29,-20,206,203,187,201,200,216,202,200,198,192,1019,995,29996,29997]} 1. d4 {[%emt 0:0:4]} d5 {[%emt 0:0:4]} 2. c4 {[%emt 0:0:3]} e6 {[%emt 0:0:2]} 3. Nc3 {[%emt 0:0:20]} Nf6 {[%emt 0:0:5]} 4. cxd5 {[%emt 0:0:6]} exd5 {[%emt 0:0:6]} 5. Bg5 {[%emt 0:0:4]} c6 {[%emt 0:0:15]} 6. e3 {[%emt 0:1:28]} h6 {[%emt 0:0:14]} 7. Bh4 {[%emt 0:0:5]} Be7 {[%emt 0:0:13]} 8. Bd3 {[%emt 0:0:8]} O-O {[%emt 0:0:16]} 9. Qc2 {[%emt 0:0:54]} Re8 {[%emt 0:0:10]} 10. Nge2 {[%emt 0:0:10]} a5 {[%emt 0:0:14]} 11. O-O {[%emt 0:0:8]} Na6 {[%emt 0:0:7][%cal Bb8a6,Ba6c7,Bc7e6,Be6g5][%mdl 32]} 12. a3 {[%emt 0:0:5] Wards off Nb4} Nc7 {[%emt 0:0:18] The position is equal.} 13. h3 {[%emt 0:0:9]} Ne6 {[%emt 0:6:30]} 14. Bg3 {[%emt 0:13:14]} Bd6 {[%emt 0:12:21]} 15. Rab1 {[%emt 0:14:19]} Ng5 {[%emt 0:9:51]} 16. Bxd6 {[%emt 0:5:38]} Qxd6 {[%emt 0:0:20]} 17. Nf4 {[%emt 0:0:6]} b5 {[%emt 0:7:41][%cal Bb7b5,Bb5b4,Bb4b3][%mdl 32]} 18. a4 {[%emt 0:8:51]} b4 {[%emt 0:4:24]} 19. Nce2 {[%emt 0:0:18]} Nge4 {[%emt 0:9:21]} 20. Bxe4 {[%emt 0:13:50]} Nxe4 {[%emt 0:1:2]} 21. Rbc1 {[%emt 0:0:6]} Bb7 {[%emt 0:19:48]} 22. Nd3 {[%emt 0:4:7]} Ba6 {[%emt 0:2:5]} 23. Rfe1 {[%emt 0:6:2]} b3 {[%emt 0:8:51]} 24. Qd1 {[%emt 0:14:18]} Bxd3 {[%emt 0:5:2]} 25. Qxd3 {[%emt 0:0:1]} Qb4 {[%emt 0:0:35]} 26. Nc3 {[%emt 0:1:17]} Nd6 {[%emt 0:3:4]} 27. Re2 {[%emt 0:0:5]} Re6 {[%emt 0:3:18]} 28. Kh2 {[%emt 0:2:2]} Rb8 {[%emt 0:1:30]} 29. g3 {[%emt 0:2:27]} f5 {[%emt 0:2:2]} 30. Nb1 {[%emt 0:9:25]} (30. Qa6 $11 Rb6 31. Qa8+ Kh7 32. Qa7 )Qxa4 $17 {[%emt 0:0:46]} 31. Qa6 {[%emt 0:0:0]} Ne4 {[%emt 0:2:27]} (31... Nb5 $1 $17 {And now ...Rf6 would win.} 32. Nd2 Kh7 )32. f3 {[%emt 0:4:3]} (32. Nc3 $15 {is superior.} Nxc3 (32... Qc4 33. Qxc4 dxc4 34. Nxe4 $14 )33. Rxc3 )Ng5 {[%emt 0:0:43]} ({Black should play} 32... Nf6 $17 {...Rbe8 is the strong threat.} 33. Nc3 Qb4 )33. h4 $1 $11 {[%emt 0:2:3]} Nf7 {[%emt 0:7:17]} (33... c5 {looks sharper.} 34. Qa7 Nxf3+ 35. Kg2 Qe8 )34. Rc5 {[%emt 0:6:31][%cal Ob1c3] Repels Qb5} Qa1 $2 {[%emt 0:2:41] This move loses the game for Black.} (34... Qb4 $11 {and Black is okay.} )35. Rxa5 $18 {[%emt 0:2:14][%cal Bc5a5,Ba5a1,Ba1a8][%mdl 32]} Qxb1 {[%emt 0:1:1]} 36. Ra1 {[%emt 0:0:1]} c5 {[%emt 0:1:40]} 37. Qa7 $1 {[%emt 0:0:0]} (37. Qxe6 $2 {too greedy.} Qxa1 38. dxc5 Rd8 $19 )Qd3 {[%emt 0:1:50]} 38. Qxb8+ {[%emt 0:0:2]} Kh7 {[%emt 0:0:3] [#]} 39. Rg2 {[%emt 0:0:23] aiming for Ra8.} cxd4 $2 {[%emt 0:0:29] [#]} (39... Qxe3 40. Qf4 Qxf4 41. gxf4 c4 )40. Ra8 $1 {[%emt 0:3:1] Threatening mate with h5.} ({Stronger than} 40. Ra7 Ne5 41. Qf8 Nxf3+ (41... Qxe3 42. Rxg7# )42. Kh3 Rg6 $11 (42... Rxe3 43. Rxg7# ))Rf6 {[%emt 0:1:5]} 41. h5 {[%emt 0:50:12] Weighted Error Value: White=0.14 (very precise) /Black=0.45.  Loses game:     	---       	Black=1      Mistake:       	White=2     	Black=3      Inaccurate:     	White=3     	Black=3      OK:         	White=8     	Black=11     Best:        	White=3     	Black=4      Strong:       	White=3     	---} 1-0

[Event "57th Biel Festival MTO 2024"]
[White "Mostertman,Milan"]
[Black "Ganguly,Surya Shekhar"]
[Site "Biel"]
[Round "1.4"]
[Annotator "TA"]
[Result "0-1"]
[Date "2024.07.15"]
[WhiteElo "2231"]
[BlackElo "2575"]
[PlyCount "60"]
[TimeControl "60"]

{[%evp 14,60,27,24,25,23,17,12,24,32,28,23,39,28,27,0,0,0,0,0,0,0,0,0,0,0,0,0,0,-179,-156,-184,-177,-256,-242,-341,-317,-589,-575,-693,-678,-29983,-2494,-29984,-29985,-29989,-544,-29988,-29989]} 1. e4 {[%emt 0:0:3]} e5 {[%emt 0:0:28]} 2. Nf3 {[%emt 0:0:8]} Nc6 {[%emt 0:0:5]} 3. Bc4 {[%emt 0:0:13]} Nf6 {[%emt 0:0:12]} 4. Ng5 {[%emt 0:0:34]} d5 {[%emt 0:0:15]} 5. exd5 {[%emt 0:0:7]} Na5 {[%emt 0:0:5]} 6. Bb5+ {[%emt 0:0:6]} c6 {[%emt 0:0:5]} 7. dxc6 {[%emt 0:0:5]} bxc6 {[%emt 0:0:5]} 8. Bd3 {[%emt 0:0:11]} Nd5 {[%emt 0:1:45]} 9. Nf3 {[%emt 0:0:39]} (9. Nxh7 $2 Nf4 10. Be4 f5 $19 )Bd6 {[%emt 0:0:40]} 10. O-O {[%emt 0:0:21]} O-O {[%emt 0:4:25] The position is equal.} 11. Re1 {[%emt 0:0:18][%cal Oc2c3]} f5 {[%emt 0:6:18] [#] And now ...e4 would win.} 12. Nxe5 {[%emt 0:0:23] Bf1 is the strong threat.} Qf6 $1 {[%emt 0:0:11]} 13. Nf3 {[%emt 0:0:20] aiming for Bf1.} g5 $1 {[%emt 0:0:12]} 14. c4 {[%emt 0:3:9]} Nf4 {[%emt 0:2:16]} 15. Bf1 {[%emt 0:0:15]} g4 {[%emt 0:0:9]} 16. d4 {[%emt 0:6:39]} gxf3 {[%emt 0:1:17]} 17. Qxf3 {[%emt 0:0:44]} Ne6 {[%emt 0:3:15]} (17... Qxd4 $6 18. Rd1 $16 (18. c5 Bc7 $11 )(18. c5 Bc7 $11 ))18. Qc3 {[%emt 0:1:32]} Nb7 $40 {[%emt 0:11:7][%mdl 128] Black attacks.} 19. c5 {[%emt 0:2:51]} Bc7 {[%emt 0:0:35]} 20. Bc4 {[%emt 0:0:55]} Na5 {[%emt 0:6:41]} 21. Bxe6+ {[%emt 0:10:40]} (21. Bf1 $1 $11 Qxd4 (21... Nxd4 22. b4 $11 )22. b4 )Bxe6 $19 {[%emt 0:0:36]} 22. Nd2 {[%emt 0:1:11]} Bd5 {[%emt 0:2:27] Strongly threatening ...Rae8. This pair of bishops is nice.} 23. b3 {[%emt 0:9:6]} (23. Nf3 $142 )Kh8 {[%emt 0:2:5]} 24. Nf3 {[%emt 0:13:56]} (24. Nf1 $142 )Rg8 {[%emt 0:0:39] Hoping for ...Rg7.} 25. g3 $2 {[%emt 0:0:11]} (25. Bd2 )f4 {[%emt 0:1:29][%cal Rf4g3] [#] ...fxg3 would now be deadly.} 26. Ne5 {[%emt 0:1:4]} Raf8 {[%emt 0:0:25] ( -> ...fxg3)} 27. Nd7 {[%emt 0:12:40]} Qh4 {[%emt 0:10:42]} (27... Qf5 $142 28. Nxf8 Qh3 (28... Rxf8 $2 29. Bxf4 Qh3 30. Re4 $19 )(28... Qxf8 29. Re5 $17 )29. Re4 Bxe4 (29... Rxf8 $2 30. Bxf4 Bxe4 31. f3 $19 )30. d5+ Rg7 31. f3 fxg3 (31... Bxd5 $2 32. Bb2 $18 )32. Ng6+ hxg6 33. hxg3 Qxg3+ (33... Bxd5 $2 34. Bb2 $19 )34. Kf1 Bxf3 35. Qb2 Be5 (35... cxd5 36. Bh6 Qh3+ 37. Ke1 Qxh6 38. Kf2 Qh2+ 39. Kxf3 Qxb2 40. Ke3 Re7+ 41. Kd3 Qe2+ 42. Kc3 Be5+ 43. Kb4 Nc6+ 44. Ka4 Qa6# )36. Qf2 Qh3+ 37. Ke1 Bc3+ (37... Bxa1 38. Bb2 Qh1+ 39. Qf1 Qxf1+ 40. Kxf1 Bxb2 41. Kf2 Bxd5 42. Kf1 Re7 43. Kf2 Bd4+ 44. Kg3 Rf7 45. Kh3 Rf5 46. Kh2 Bf2 47. Kh3 Bf3 48. Kh2 Rh5# )38. Bd2 Re7+ (38... Bxa1 39. Bb4 Qh1+ 40. Kd2 Qd1+ 41. Ke3 Re7+ 42. Kf4 Re4+ 43. Kg3 Be5+ 44. Kh3 Qh1+ 45. Qh2 Qxh2# )39. Qe3 Qh1+ (39... Rxe3+ $2 40. Kf2 Re2+ 41. Kg1 Qh1# )40. Kf2 Qg2+ 41. Ke1 Rxe3# )28. Nxf8 {[%emt 0:10:57]} Qh3 {[%emt 0:0:21][%csl Gd5][%cal Rh3g2]} 29. Re4 {[%emt 0:0:39]} Rxf8 {[%emt 0:2:59]} (29... Bxe4 $142 30. d5+ Rg7 31. f3 fxg3 (31... Bxd5 $2 {too greedy.} 32. Bb2 $18 )32. Ng6+ Bxg6 (32... hxg6 {leads to mate.} 33. hxg3 Qxg3+ 34. Kf1 Bxf3 35. Qb2 Be5 36. Qf2 Qh3+ 37. Ke1 Bc3+ 38. Bd2 Re7+ 39. Qe3 Qg3+ 40. Kf1 Qg2+ 41. Ke1 Rxe3# )33. Qb2 Be4 (33... Qxh2+ $2 34. Qxh2 gxh2+ 35. Kh1 $19 )(33... gxh2+ 34. Kf2 Bg3+ 35. Ke3 h1=Q 36. Qxg7+ Kxg7 37. Bb2+ Kg8 38. Rxh1 Qg2 39. Rf1 Qxf1 40. dxc6 Qf2# )34. fxe4 Be5 (34... Qxh2+ 35. Qxh2 gxh2+ 36. Kf2 h1=Q 37. Bb2 Qh2+ 38. Ke3 Bf4+ 39. Kf3 Qg3+ 40. Ke2 Qg2+ 41. Ke1 Qxb2 42. Kf1 Qh2 43. dxc6 Rg1# )(34... gxh2+ 35. Kf2 Qg3+ 36. Ke2 h1=Q 37. Qxg7+ Qxg7 38. Be3 Qhg2+ 39. Kd3 Qxa1 40. d6 Qgf1+ 41. Kd2 Qfd1# )35. Bg5 Bxb2 36. Be3 Bc3 (36... Bxa1 37. hxg3 Qxg3+ 38. Kf1 Qxe3 39. dxc6 Rg1# )(36... gxh2+ 37. Kf2 Qg2+ 38. Ke1 h1=Q+ 39. Bg1 Qhxg1# )37. hxg3 Rxg3+ 38. Kf2 Qg2# )30. Bb2 {[%emt 0:1:6]} f3 {[%emt 0:0:32] Weighted Error Value: White=1.06/Black=0.45.  Loses game:     	White=1     	---        Mistake:       	White=3     	---        Inaccurate:     	White=2     	---        OK:         	White=9     	Black=11     Best:        	---       	Black=2      Strong:       	---       	Black=2} ({Not} 30... Bxe4 31. d5+ )0-1

[Event "57th Biel Festival MTO 2024"]
[White "Sethuraman,S.P."]
[Black "Balabayeva,Xeniya"]
[Site "Biel"]
[Round "1.5"]
[Annotator "TA"]
[Result "1-0"]
[Date "2024.07.15"]
[WhiteElo "2587"]
[BlackElo "2246"]
[PlyCount "69"]
[TimeControl "60"]

{[%evp 12,69,32,29,30,26,40,24,39,36,52,18,79,62,58,34,77,82,73,43,37,22,31,10,22,0,15,20,43,35,30,37,81,58,62,65,53,74,139,167,156,139,210,181,162,116,270,308,308,283,307,308,310,292,640,572,756,747,29986,29986]} 1. e4 {[%emt 0:1:28][%cal Be2e4,Be4e5][%mdl 32]} c6 {[%emt 0:0:44]} 2. d4 {[%emt 0:0:12]} d5 {[%emt 0:0:6]} 3. e5 {[%emt 0:0:7]} Bf5 {[%emt 0:0:29]} 4. Nf3 {[%emt 0:1:40]} e6 {[%emt 0:0:16]} 5. Nbd2 {[%emt 0:0:11]} Nd7 {[%emt 0:4:12]} 6. Be2 {[%emt 0:0:28]} h6 {[%emt 0:2:58]} 7. O-O {[%emt 0:0:23]} Ne7 {[%emt 0:3:39][%cal Bg8e7,Be7f5,Bf5h6][%mdl 32]} 8. Nb3 {[%emt 0:0:9]} a5 {[%emt 0:1:54]} 9. a4 {[%emt 0:0:13]} Bh7 {[%emt 0:1:53] White has an edge.} 10. Bd2 {[%emt 0:0:58]} Nf5 {[%emt 0:13:36]} 11. Bd3 {[%emt 0:11:19]} h5 {[%emt 0:14:32]} (11... Bg6 $11 )12. g3 {[%emt 0:14:37][%cal Bg2g3,Bg3g4][%mdl 32]} Be7 {[%emt 0:6:50]} 13. h3 {[%emt 0:20:34]} O-O {[%emt 0:9:45]} 14. g4 {[%emt 0:3:52]} Nh6 {[%emt 0:8:16]} 15. Bxh7+ {[%emt 0:9:33]} (15. Bxh6 $5 gxh6 16. gxh5 $11 )Kxh7 {[%emt 0:0:7]} 16. Kg2 {[%emt 0:0:5]} Rh8 {[%emt 0:4:53]} 17. Qe1 {[%emt 0:14:40]} b6 {[%emt 0:4:16]} 18. Nh2 {[%emt 0:2:24]} (18. gxh5 Kg8 $11 )hxg4 {[%emt 0:8:58]} 19. hxg4 {[%emt 0:0:7]} Nf8 {[%emt 0:0:16][%cal Bd7f8,Bf8g6,Bg6h4][%mdl 32]} 20. Bxh6 {[%emt 0:5:5]} gxh6 {[%emt 0:0:58]} 21. f4 {[%emt 0:0:5]} Rg8 {[%emt 0:1:58]} 22. Qe3 {[%emt 0:4:24]} Ng6 {[%emt 0:1:5]} 23. Kh1 {[%emt 0:0:51]} Nh4 {[%emt 0:0:43][%cal Oh6h5]} 24. Nd2 {[%emt 0:4:16]} h5 {[%emt 0:2:48]} 25. Qd3+ $1 $16 {[%emt 0:0:14]} (25. gxh5 $2 Nf5 26. Qd3 Qf8 $19 )Kh8 {[%emt 0:1:43]} 26. f5 $1 {[%emt 0:3:7] aiming for f6.} exf5 {[%emt 0:4:31]} (26... hxg4 27. f6 Rg6 (27... g3 $2 28. Rf4 $18 )28. Rf4 (28. fxe7 Qxe7 29. Rf6 Rag8 $16 ))(26... Bg5 $16 )27. gxf5 $40 {[%emt 0:0:11][%cal Bg4f5,Bf5f6][%mdl 160] Threatens to win with f6. White wants a kill.} (27. gxh5 Bg5 $11 )Bg5 {[%emt 0:1:25] [#]} 28. Qe2 {[%emt 0:6:3]} ({Better is} 28. f6 $1 $18 {Ndf3 would now be deadly.} Qf8 29. Ndf3 )Rg7 $2 {[%emt 0:3:0] Black cannot hold the game after this.} (28... Qf8 $16 )29. f6 {[%emt 0:0:30]} ({Inferior is} 29. Qxh5+ Rh7 30. Qe2 Qf8 $11 )Rh7 {[%emt 0:0:26]} 30. Ndf3 {[%emt 0:0:37]} Nf5 {[%emt 0:0:21]} 31. Rg1 {[%emt 0:6:0] Prevents Ng3+.} (31. Nxg5 $2 {perishes.} Ng3+ (31... Nxd4 $2 {too greedy.} 32. Qd3 $18 )32. Kg2 Nxe2 $19 )Be3 {[%emt 0:3:32][%cal Oh5h4] [#]} 32. Qd3 $1 {[%emt 0:0:11]} Qd7 {[%emt 0:1:55] [#]} (32... Bxg1 33. Rxg1 Nd6 34. exd6 Qxf6 )33. Ng5 $1 {[%emt 0:0:5]} Bxg1 {[%emt 0:1:10]} (33... Bxg5 34. Rxg5 )34. Rxg1 {[%emt 0:0:4]} Rh6 {[%emt 0:1:49] [#]} 35. Qxf5 $3 {[%emt 0:0:25][%mdl 512] Weighted Error Value: White=0.08 (flawless) /Black=0.58.  Mistake:       	White=1     	Black=5      Inaccurate:     	White=2     	Black=4      OK:         	White=9     	Black=11     Best:        	White=2     	---        Strong:       	White=3     	---} 1-0

[Event "57th Biel Festival MTO 2024"]
[White "Pappier,Carlos"]
[Black "Sasikiran,Krishnan"]
[Site "Biel"]
[Round "1.6"]
[Annotator "TA"]
[Result "0-1"]
[Date "2024.07.15"]
[WhiteElo "2202"]
[BlackElo "2581"]
[PlyCount "56"]
[TimeControl "60"]

{[%evp 9,56,25,36,29,31,28,57,47,51,33,47,40,24,19,37,9,38,29,22,23,16,0,0,0,0,-16,-17,-49,-41,-59,-20,-54,-43,-79,-65,-154,-164,-168,-143,-129,-121,-500,-468,-535,-531,-704,-697,-738,-748]} 1. d4 {[%emt 0:0:10]} g6 {[%emt 0:2:20]} 2. e4 {[%emt 0:0:35]} Bg7 {[%emt 0:0:23]} 3. Nc3 {[%emt 0:1:3]} d6 {[%emt 0:1:19]} 4. Nge2 {[%emt 0:1:53]} a6 {[%emt 0:5:11]} 5. a4 {[%emt 0:2:34][%cal Ba2a4,Ba4a5][%mdl 32]} Nd7 {[%emt 0:8:15]} 6. g3 {[%emt 0:1:31]} c5 {[%emt 0:4:42]} 7. d5 {[%emt 0:6:34]} Rb8 {[%emt 0:8:25]} 8. a5 {[%emt 0:4:51] White is slightly better.} Ne5 {[%emt 0:8:1]} 9. Ng1 {[%emt 0:5:30] Prevents Nf3+.} f5 {[%emt 0:4:37]} 10. f4 {[%emt 0:5:38]} Nf7 {[%emt 0:6:37]} 11. exf5 {[%emt 0:9:50]} Bxf5 {[%emt 0:3:37]} 12. Bd3 {[%emt 0:0:55] Black should prevent Bxf5.} Qd7 {[%emt 0:7:55]} 13. Na4 {[%emt 0:4:23] Threatens to win with Nb6.} Bxd3 {[%emt 0:8:42]} 14. Qxd3 {[%emt 0:1:29]} e5 {[%emt 0:0:46]} 15. Nb6 {[%emt 0:10:36]} Qe7 {[%emt 0:1:26]} 16. Ne2 {[%emt 0:2:53]} Nf6 {[%emt 0:2:37]} 17. O-O {[%emt 0:2:30]} O-O {[%emt 0:1:29]} 18. Nc4 {[%emt 0:3:20]} Rbe8 {[%emt 0:3:11]} 19. Nc3 {[%emt 0:2:37]} e4 {[%emt 0:8:35]} 20. Qd1 {[%emt 0:2:2]} Nh6 {[%emt 0:1:18]} 21. Ra3 {[%emt 0:14:13]} Nf5 {[%emt 0:2:13]} 22. Ne2 {[%emt 0:0:34]} ({Better is} 22. Ne3 $15 )Qf7 $17 {[%emt 0:2:20]} 23. Rb3 {[%emt 0:2:0]} Nxd5 {[%emt 0:3:16] Hoping for ...h5.} ({Don't do} 23... Qxd5 24. Qxd5+ Nxd5 25. Rxb7 $17 )24. g4 {[%emt 0:0:39]} Nb4 $1 $36 {[%emt 0:2:28][%mdl 2048] Keeping White busy. Black is more active.} 25. Nxd6 {[%emt 0:4:46][%mdl 8192] [#] This move loses the game for White.} (25. Rxb4 $17 {nothing else works.} cxb4 26. b3 )Nxd6 $19 {[%emt 0:1:8] Black is clearly winning.} 26. Qxd6 {[%emt 0:0:11]} Nxc2 {[%emt 0:0:49]} 27. Rb6 {[%emt 0:1:19]} Nd4 {[%emt 0:1:9]} 28. Ng3 {[%emt 0:1:13]} e3 {[%emt 0:1:39] Weighted Error Value: White=0.47/Black=0.08 (flawless) .  Loses game:     	White=1     	---        Mistake:       	White=1     	---        Inaccurate:     	White=5     	Black=3      OK:         	White=4     	Black=10     Best:        	White=1     	---} 0-1